bitfinex/quotes_ETHUSD_20241009
["timestamp","ask_amount","ask_price","bid_price","bid_amount"]
[1728505064197,4.14405,2413.1,2412.7,0.817]
[1728505064533,4.14405,2413.1,2412.4,4.2654143]
[1728505064534,3.85671881,2413.1,2412.4,5.0284743]
[1728505064739,0.04824071,2413.0,2412.6,4.14489]
[1728505065036,0.04824071,2413.0,2412.4,5.53130173]
[1728505065207,4.19248071,2413.0,2412.4,9.67644173]
[1728505065586,4.19248071,2413.0,2412.4,5.53130173]
[1728505065784,8.00113881,2412.9,2412.4,5.0284543]
[1728505065998,8.00113881,2412.9,2412.4,0.8833643]
[1728505066194,0.045852,2412.8,2412.4,0.8833643]
[1728505066784,0.045852,2412.8,2412.4,5.0286043]
[1728505067027,0.045852,2412.8,2412.4,0.1202643]
[1728505067186,0.045852,2412.8,2412.4,4.2653943]
[1728505067719,0.801552,2412.8,2412.4,0.1202643]
[1728505067904,1.80373468,2412.8,2412.4,0.1202643]
[1728505068493,0.801552,2412.8,2412.4,0.1202643]
[1728505069236,0.801552,2412.8,2412.4,4.2653943]
[1728505069442,0.801552,2412.8,2412.4,0.1202643]
[1728505069733,4.946122,2412.8,2412.4,0.1202643]
[1728505069902,0.801552,2412.8,2412.4,0.1202643]
[1728505070228,0.46582708,2412.7,2412.4,0.1202643]
[1728505070562,0.46582708,2412.7,2412.4,4.2654943]
[1728505070834,0.045852,2412.6,2412.4,4.2654943]
[1728505071302,0.045852,2412.6,2412.5,4.14507]
[1728505071627,0.7557,2412.8,2412.4,4.2654543]
[1728505071814,0.045852,2412.6,2412.4,0.1202643]
[1728505072019,2.04580588,2412.8,2412.4,0.1202643]
[1728505072227,0.045852,2412.5,2412.4,0.1202643]
[1728505072827,2.04580588,2412.8,2412.4,0.1202643]
[1728505073058,0.045852,2412.5,2412.4,4.2654643]
[1728505073500,2.04580588,2412.8,2412.4,4.2654643]
[1728505073694,0.045852,2412.7,2412.4,4.2654643]
[1728505073893,2.04580588,2412.8,2412.4,0.1202643]
[1728505074101,0.045852,2412.7,2412.4,0.1202643]
[1728505074315,2.04580588,2412.8,2412.4,4.2654443]
[1728505074515,0.045852,2412.7,2412.4,4.2654443]
[1728505074748,2.04580588,2412.8,2412.4,4.2654443]
[1728505075051,0.045852,2412.7,2412.4,4.2654443]
[1728505075412,2.04580588,2412.8,2412.4,4.2654443]
[1728505075735,0.64939335,2413.4,2412.8,0.7625]
[1728505075908,0.7755,2413.9,2413.0,4.14419]
[1728505076109,0.7755,2413.9,2413.4,4.14343]
[1728505076362,4.14301,2413.8,2413.2,4.14387]
[1728505076557,0.491851,2413.7,2413.2,4.14387]
[1728505077950,0.491851,2413.7,2412.7,7.3473782]
[1728505077951,3.85671881,2413.5,2412.7,0.2026682]
[1728505078156,4.14403,2413.2,2412.7,4.14462]
[1728505079959,4.94726,2413.4,2412.9,8.28865]
[1728505080166,5.856316,2413.4,2412.9,8.28865]
[1728505080458,0.8036,2413.4,2413.0,4.14408]
[1728505080812,0.8036,2413.4,2413.0,8.28821]
[1728505081258,0.8036,2413.4,2412.8,4.14443]
[1728505081558,5.32757,2413.4,2412.8,4.14443]
[1728505081757,5.32757,2413.4,2413.0,4.14419]
[1728505082120,0.8036,2413.4,2413.1,4.14393]
[1728505082353,0.491851,2413.7,2412.8,4.95701]
[1728505082354,4.93465,2413.7,2412.8,4.95701]
[1728505082663,4.93465,2413.7,2413.2,8.28762]
[1728505082664,0.7916,2413.7,2413.2,8.28762]
[1728505082956,0.7916,2413.7,2413.2,4.14377]
[1728505083142,4.93465,2413.7,2413.2,4.14377]
[1728505083337,0.04074974,2413.6,2413.2,4.14377]
[1728505083657,0.04074974,2413.6,2413.2,4.14375]
[1728505084111,0.04074974,2413.6,2413.4,4.14351]
[1728505084318,0.04074974,2413.6,2413.3,0.7549]
[1728505084565,4.14286,2413.8,2413.3,4.89852]
[1728505084721,0.04074974,2413.7,2413.3,4.89852]
[1728505084922,4.14286,2413.8,2413.3,4.89852]
[1728505085148,0.04074974,2413.7,2413.3,4.89852]
[1728505085318,4.14302,2413.7,2413.3,4.14362]
[1728505085653,0.04074974,2413.6,2413.3,4.14362]
[1728505086157,0.04074974,2413.6,2413.3,4.1436]
[1728505086358,9.05913,2414.0,2413.4,4.14351]
[1728505086561,0.99560954,2413.9,2413.3,4.1436]
[1728505086752,4.14285,2413.8,2413.3,4.1436]
[1728505087058,4.14303,2413.7,2413.3,4.1436]
[1728505087355,4.14303,2413.7,2413.1,4.89813]
[1728505087356,4.14329,2413.6,2413.1,4.89813]
[1728505087915,4.18419974,2413.5,2413.1,0.7542]
[1728505088121,4.14356,2413.4,2412.9,9.06535]
[1728505088644,0.04074974,2413.3,2412.9,4.92105]
[1728505089221,4.14337,2413.5,2413.0,4.14421]
[1728505089428,0.04074974,2413.2,2413.0,4.14421]
[1728505089673,4.14337,2413.5,2413.0,4.14421]
[1728505089837,0.04074974,2413.1,2413.0,4.14421]
[1728505090039,4.14337,2413.5,2413.0,4.14421]
[1728505090242,0.04074974,2413.1,2413.0,4.14421]
[1728505090444,4.14337,2413.5,2413.0,4.14421]
[1728505090655,0.04099188,2413.1,2413.0,4.14421]
[1728505090860,4.14337,2413.5,2413.0,4.14421]
[1728505091367,0.04099188,2413.4,2413.0,4.14421]
[1728505091882,0.04099188,2413.4,2412.9,4.92105]
[1728505091883,4.18453188,2413.4,2412.9,9.06535]
[1728505092233,4.18453188,2413.4,2412.9,4.92105]
[1728505092433,8.32817188,2413.4,2412.9,4.92105]
[1728505092633,4.1438,2413.3,2412.9,0.7768]
[1728505092870,4.14387,2413.2,2412.9,0.7768]
[1728505093117,4.14387,2413.2,2412.8,4.14453]
[1728505093235,0.04099188,2413.1,2412.8,4.14453]
[1728505093678,0.7807,2413.6,2413.1,4.14396]
[1728505093679,4.92401,2413.6,2413.1,4.14396]
[1728505093944,9.973986,2413.6,2413.1,4.14396]
[1728505094347,4.14337,2413.5,2413.0,4.14417]
[1728505095177,4.14337,2413.5,2413.0,8.28834]
[1728505095539,4.14337,2413.5,2413.0,4.14417]
[1728505095734,4.14353,2413.4,2412.8,4.14443]
[1728505095936,4.14382,2413.3,2412.8,4.14443]
[1728505096140,4.14382,2413.3,2412.8,4.22731247]
[1728505097601,0.04099188,2413.2,2412.8,4.22731247]
[1728505098044,4.14382,2413.3,2412.8,4.22731247]
[1728505098248,0.7807,2413.6,2413.0,4.14421]
[1728505098249,0.04099188,2413.1,2413.0,4.14421]
[1728505098495,4.14341,2413.5,2413.0,4.14421]
[1728505098788,0.04099188,2413.4,2413.0,4.14421]
[1728505099990,4.18454188,2413.4,2413.0,4.14421]
[1728505100343,0.04099188,2413.4,2413.0,4.14421]
[1728505100786,0.04099188,2413.4,2413.1,4.14404]
[1728505100974,4.92389,2413.6,2413.2,0.7824]
[1728505101179,0.04100461,2413.5,2413.3,4.14367]
[1728505101493,4.14302,2413.7,2413.3,4.14367]
[1728505101668,0.04100461,2413.4,2413.3,4.14367]
[1728505101858,4.14302,2413.7,2413.3,4.14367]
[1728505102065,0.0412807,2413.4,2413.3,4.14367]
[1728505102278,0.8328,2414.0,2413.3,0.98986061]
[1728505102562,4.14079,2415.0,2413.3,0.98986061]
[1728505102563,0.8328,2414.3,2413.9,0.8027]
[1728505102762,4.97487,2414.3,2413.9,0.8027]
[1728505102945,4.14235,2414.1,2413.6,4.94578]
[1728505103151,8.28483,2414.1,2413.6,4.94578]
[1728505103370,4.14252,2414.0,2413.6,4.94578]
[1728505104057,4.14235,2414.1,2413.6,4.94578]
[1728505104255,4.14235,2414.1,2413.6,9.08887]
[1728505104481,4.1425,2414.0,2413.6,4.94578]
[1728505104677,4.14275,2413.9,2413.4,1.89379141]
[1728505104880,4.14312,2413.7,2413.2,5.82567472]
[1728505105176,4.14312,2413.7,2413.2,4.95855]
[1728505105417,4.14312,2413.7,2413.2,9.10233]
[1728505105719,4.14312,2413.7,2413.2,5.82567472]
[1728505105720,8.28626,2413.7,2413.2,5.82567472]
[1728505106012,4.14312,2413.7,2413.2,9.96945472]
[1728505107311,4.14311,2413.7,2413.2,5.82567472]
[1728505107779,4.14284,2413.8,2413.3,5.01080472]
[1728505108619,6.33270538,2413.9,2413.4,4.14352]
[1728505108828,0.822,2414.1,2413.6,4.93978]
[1728505109114,0.822,2414.3,2413.8,4.14283]
[1728505110115,4.96402,2414.3,2413.8,4.14275]
[1728505110627,4.14217,2414.2,2413.8,4.14275]
[1728505110787,4.14217,2414.2,2413.6,4.93968]
[1728505110788,5.052774,2414.2,2413.6,4.93968]
[1728505111117,4.14236,2414.1,2413.6,4.93968]
[1728505112006,4.14217,2414.2,2413.7,4.14298]
[1728505112635,0.04157363,2414.1,2413.8,4.14282]
[1728505113298,4.964,2414.3,2413.8,4.14282]
[1728505113935,4.18375363,2414.2,2413.7,4.14298]
[1728505114311,4.14236,2414.1,2413.7,4.14298]
[1728505114521,4.14252,2414.0,2413.6,0.7966]
[1728505114829,4.18427363,2413.9,2413.6,0.7966]
[1728505115038,4.18427363,2413.9,2413.5,4.14323]
[1728505115039,0.04157363,2413.9,2413.5,4.14323]
[1728505115533,0.04157363,2413.9,2413.6,0.08286165]
[1728505116098,4.14238,2414.1,2413.7,4.14299]
[1728505116330,0.04157363,2413.8,2413.7,8.28591]
[1728505116533,4.96409,2414.3,2413.7,4.14292]
[1728505116831,0.04157363,2413.8,2413.7,4.14292]
[1728505117041,1.238409,2414.2,2413.7,4.14292]
[1728505117402,4.18392363,2414.1,2413.7,4.14292]
[1728505118313,4.18392363,2414.1,2413.6,4.14317]
[1728505118734,8.32640363,2414.1,2413.6,4.14317]
[1728505118938,5.22260489,2414.1,2413.6,4.14317]
[1728505119618,9.36502489,2414.1,2413.6,4.14317]
[1728505119937,4.14254,2414.0,2413.6,4.14317]
[1728505120441,4.14254,2414.0,2413.4,4.94819]
[1728505120442,4.18427363,2413.9,2413.4,4.94819]
[1728505120598,4.14308,2413.7,2413.2,9.15463472]
[1728505120943,4.14286,2413.8,2413.3,4.14361]
[1728505121097,0.04157363,2413.6,2413.3,4.14361]
[1728505121299,4.635026,2413.8,2413.3,4.14361]
[1728505121702,0.04184108,2413.7,2413.3,4.14361]
[1728505122140,4.635026,2413.8,2413.3,4.14361]
[1728505122340,0.04184108,2413.6,2413.2,4.91334]
[1728505122546,4.92164,2413.9,2413.4,4.14343]
[1728505122755,0.04184108,2413.5,2413.4,4.14343]
[1728505123042,4.14258,2414.0,2413.5,4.14328]
[1728505123207,8.28546,2413.9,2413.4,4.14343]
[1728505123404,0.04177317,2413.8,2413.6,0.7777]
[1728505123604,0.8094,2414.1,2413.7,4.14293]
[1728505123909,0.04177317,2414.0,2413.7,4.14293]
[1728505124325,0.04177317,2414.0,2413.8,4.14275]
[1728505124525,4.14225,2414.2,2413.8,4.14275]
[1728505124743,0.04177317,2413.9,2413.7,4.143]
[1728505125106,5.790778,2414.2,2413.8,4.14284]
[1728505125611,5.790778,2414.2,2413.7,4.143]
[1728505125813,4.14225,2414.2,2413.7,4.14292]
[1728505126136,0.7812,2414.3,2413.7,4.14292]
[1728505126436,4.92326,2414.3,2413.8,4.14272]
[1728505126639,0.7812,2414.3,2413.8,4.14272]
[1728505126937,4.14217,2414.2,2413.8,4.14272]
[1728505127138,4.14192,2414.4,2413.9,4.93766]
[1728505127349,4.14199,2414.3,2413.9,0.795]
[1728505127561,4.18380563,2414.3,2413.9,0.795]
[1728505128211,0.04181563,2414.3,2413.9,4.93765]
[1728505128424,4.18380563,2414.3,2413.9,0.795]
[1728505128947,0.04181563,2414.3,2414.0,9.05783]
[1728505129143,0.04181563,2414.3,2414.0,4.91544]
[1728505129307,4.14172,2414.5,2414.0,4.91544]
[1728505129640,0.04181563,2414.4,2414.2,4.14206]
[1728505130144,0.8098,2414.8,2414.1,4.1423]
[1728505130347,0.04181563,2414.3,2414.1,4.14222]
[1728505130671,0.04181563,2414.2,2414.1,4.14222]
[1728505130851,0.04181563,2414.2,2414.1,4.73284092]
[1728505131140,4.14163,2414.6,2414.2,4.14215]
[1728505131645,0.04181563,2414.5,2414.2,4.14215]
[1728505131806,0.04181563,2414.5,2414.1,4.14228]
[1728505133013,0.04181563,2414.5,2414.2,4.14207]
[1728505133210,4.95093,2414.8,2414.4,4.14181]
[1728505133556,0.04205328,2414.7,2414.4,4.14181]
[1728505133909,4.95093,2414.8,2414.3,4.56433069]
[1728505134140,0.04205328,2414.6,2414.3,4.56433069]
[1728505134451,4.95093,2414.8,2414.3,4.56433069]
[1728505134452,9.09217,2414.8,2414.3,4.14184]
[1728505134658,4.95093,2414.8,2414.3,4.14184]
[1728505134833,0.04206176,2414.7,2414.3,4.14184]
[1728505135035,4.95093,2414.8,2414.3,4.14184]
[1728505135236,0.04206176,2414.7,2414.3,4.14184]
[1728505135435,4.95093,2414.8,2414.3,4.14184]
[1728505135633,0.04209995,2414.7,2414.3,4.14184]
[1728505135838,4.95093,2414.8,2414.3,9.190602]
[1728505136018,0.04211692,2414.6,2414.3,9.190602]
[1728505136222,4.95093,2414.8,2414.3,9.190582]
[1728505136423,0.04211692,2414.7,2414.3,9.190582]
[1728505136949,4.95093,2414.8,2414.3,9.190582]
[1728505137147,0.04211692,2414.6,2414.3,9.190582]
[1728505137338,4.95093,2414.8,2414.4,0.9975082]
[1728505137527,0.04211692,2414.5,2414.3,8.28373]
[1728505137730,4.95093,2414.8,2414.3,8.28373]
[1728505137952,0.04211692,2414.4,2414.3,8.28373]
[1728505138195,0.8098,2414.8,2414.4,4.14171]
[1728505138460,4.95093,2414.8,2414.4,4.14171]
[1728505138663,4.95093,2414.8,2414.3,4.14197]
[1728505138957,4.95093,2414.8,2414.3,5.048835]
[1728505139164,4.95093,2414.8,2414.3,9.190805]
[1728505139531,4.95093,2414.8,2414.3,5.048835]
[1728505139771,4.95093,2414.8,2414.3,9.190725]
[1728505140131,4.95093,2414.8,2414.3,5.048755]
[1728505140533,9.09218,2414.8,2414.3,5.048755]
[1728505141428,4.14151,2414.6,2414.3,0.906865]
[1728505141636,4.14151,2414.6,2414.0,7.38]
[1728505141637,4.92927,2414.5,2414.0,12.27501]
[1728505141836,4.14139,2414.7,2414.2,4.14201]
[1728505142458,0.7876,2414.5,2414.1,4.14223]
[1728505142756,0.7876,2414.5,2414.1,6.1747722]
[1728505142954,4.142,2414.3,2414.0,8.1326]
[1728505143280,4.14251,2414.0,2413.5,12.27584]
[1728505143485,4.92994,2414.1,2413.6,0.08285276]
[1728505143665,4.92994,2414.1,2413.6,4.22594276]
[1728505143866,0.04234177,2414.0,2413.6,5.63812104]
[1728505144055,0.04234177,2414.0,2413.7,4.143]
[1728505144459,4.18486177,2414.0,2413.6,1.49503104]
[1728505144681,4.18486177,2414.0,2413.5,4.89584]
[1728505144853,4.18486177,2414.0,2413.5,9.0391]
[1728505145059,0.04234177,2414.0,2413.5,4.89584]
[1728505145256,0.04234177,2414.0,2413.7,4.14301]
[1728505145460,0.04234177,2414.0,2413.6,4.22603277]
[1728505145978,4.18486177,2414.0,2413.5,4.89584]
[1728505146155,4.18486177,2414.0,2413.5,9.03912]
[1728505146353,4.14279,2413.9,2413.4,4.14343]
[1728505146688,4.1432,2413.6,2413.1,16.53498472]
[1728505146986,4.1432,2413.6,2413.1,15.66786]
[1728505147290,4.14336,2413.5,2413.1,4.14391]
[1728505147442,0.8205,2413.4,2413.1,4.14391]
[1728505147641,4.96403,2413.4,2413.0,0.83547379]
[1728505147885,4.18589054,2413.3,2412.8,4.95199]
[1728505148368,4.18590054,2413.3,2412.8,5.03486995]
[1728505148682,4.14395,2413.2,2412.8,0.89037974]
[1728505149000,4.92603,2413.0,2412.4,5.0689943]
[1728505149286,0.04200653,2412.9,2412.4,0.1202643]
[1728505149508,4.14463,2412.8,2412.4,0.1202643]
[1728505149659,4.14486,2412.7,2412.4,0.1202643]
[1728505149864,0.04200653,2412.6,2412.4,0.1202643]
[1728505150484,4.18690653,2412.6,2412.4,0.1202643]
[1728505150685,4.14473,2412.7,2412.4,0.1202643]
[1728505150864,0.04149726,2412.5,2412.4,0.1202643]
[1728505151074,4.14473,2412.7,2412.4,0.1202643]
[1728505151311,0.04149726,2412.5,2412.4,0.1202643]
[1728505151600,4.973672,2412.7,2412.4,0.1202643]
[1728505151601,4.14485,2412.7,2412.4,0.1202643]
[1728505151808,0.04149726,2412.5,2412.4,0.1202643]
[1728505152171,4.94874,2412.8,2412.4,0.1202643]
[1728505152371,0.04138262,2412.5,2412.4,0.1202643]
[1728505152590,4.14473,2412.7,2412.4,0.1202643]
[1728505152777,0.04138262,2412.5,2412.4,0.1202643]
[1728505152980,4.14473,2412.7,2412.4,0.1202643]
[1728505153302,4.14499,2412.6,2412.4,0.1202643]
[1728505153517,0.04138262,2412.6,2412.4,0.1202643]
[1728505155781,0.66133588,2412.6,2412.4,0.1202643]
[1728505159598,0.04138262,2412.6,2412.4,0.1202643]
[1728505159911,0.8041,2412.8,2412.4,0.1202643]
[1728505160125,0.04138262,2412.5,2412.4,4.2653643]
[1728505160271,7.42,2413.5,2412.4,4.2653643]
[1728505160272,4.9215,2413.0,2412.5,4.14504]
[1728505160610,4.18531272,2412.9,2412.4,9.1835243]
[1728505160913,4.18531272,2412.9,2412.4,5.0383643]
[1728505162485,0.04090272,2412.9,2412.5,4.14506]
[1728505164880,0.04090272,2412.9,2412.4,5.0383643]
[1728505165123,4.14456,2412.8,2412.4,0.1202643]
[1728505165325,8.79414881,2412.7,2412.4,0.1202643]
[1728505165682,0.04090272,2412.6,2412.4,0.1202643]
[1728505166418,0.04090272,2412.6,2412.5,4.14507]
[1728505167120,4.93693,2413.0,2412.5,4.14507]
[1728505167292,0.04090272,2412.6,2412.5,4.14507]
[1728505167615,3.85671881,2412.9,2412.5,4.14507]
[1728505168084,0.04090272,2412.8,2412.5,4.14507]
[1728505168921,0.04090272,2412.8,2412.6,4.14489]
[1728505169231,0.04090272,2412.8,2412.5,4.14506]
[1728505169377,9.08124,2413.0,2412.5,4.14506]
[1728505169717,11.11703588,2413.0,2412.5,4.14506]
[1728505169919,0.04090272,2412.9,2412.5,4.14506]
[1728505170483,0.04090272,2412.9,2412.5,8.29005]
[1728505170717,0.04090272,2412.9,2412.5,4.14499]
[1728505173625,3.89762153,2412.9,2412.4,5.121989]
[1728505173833,0.8142,2412.6,2412.4,4.2654943]
[1728505174402,0.04090272,2412.5,2412.4,4.2654943]
[1728505175133,4.95878,2412.8,2412.4,4.2654943]
[1728505175331,0.04090272,2412.5,2412.4,4.2654943]
[1728505175629,4.95878,2412.8,2412.4,4.2654943]
[1728505175925,0.8142,2412.8,2412.4,4.2654943]
[1728505176130,0.04095368,2412.7,2412.4,0.1202643]
[1728505176491,5.84032088,2412.8,2412.4,0.1202643]
[1728505176693,0.04095368,2412.7,2412.4,0.1202643]
[1728505176918,4.14476,2412.7,2412.4,0.1202643]
[1728505177197,0.04095368,2412.6,2412.4,0.1202643]
[1728505177503,5.84037088,2412.8,2412.4,0.1202643]
[1728505177705,0.04095368,2412.5,2412.4,0.1202643]
[1728505177904,5.84037088,2412.8,2412.4,0.1202643]
[1728505178083,0.04095368,2412.5,2412.4,0.1202643]
[1728505178427,8.00149881,2412.7,2412.4,0.1202643]
[1728505178633,0.04095368,2412.5,2412.4,0.1202643]
[1728505178930,4.69907249,2412.5,2412.4,0.1202643]
[1728505179222,1.68580625,2412.5,2412.4,0.1202643]
[1728505179406,1.72680241,2412.5,2412.4,0.1202643]
[1728505180020,0.84239616,2412.5,2412.4,0.1202643]
[1728505180221,0.04099616,2412.5,2412.4,0.1202643]
[1728505181259,4.18606616,2412.5,2412.4,0.1202643]
[1728505181571,11.85908497,2412.5,2412.4,0.1202643]
[1728505183924,8.00236616,2412.5,2412.4,0.1202643]
[1728505184126,13.07382059,2412.5,2412.4,0.1202643]
[1728505186242,13.27627057,2412.5,2412.4,0.1202643]
[1728505189561,13.07382059,2412.5,2412.4,0.1202643]
[1728505195670,5.00236616,2412.5,2412.4,0.1202643]
[1728505196256,4.18606616,2412.5,2412.4,0.1202643]
[1728505200234,8.04278497,2412.5,2412.4,0.1202643]
[1728505200845,4.18606616,2412.5,2412.4,0.1202643]
[1728505202603,5.9705631,2412.5,2412.4,0.1202643]
[1728505203441,0.04099616,2412.5,2412.4,0.1202643]
[1728505203847,0.04099616,2412.5,2412.4,5.0240043]
[1728505204149,4.14442,2412.9,2412.4,6.03213017]
[1728505204350,0.04051925,2412.5,2412.4,6.03213017]
[1728505204578,4.14457,2412.8,2412.4,1.88689017]
[1728505204755,0.04051925,2412.5,2412.4,1.88689017]
[1728505205401,4.14457,2412.8,2412.4,1.88689017]
[1728505205561,0.04051925,2412.5,2412.4,6.03213017]
[1728505205813,4.14433,2413.0,2412.5,4.69499]
[1728505206072,1.78449694,2412.7,2412.4,0.8787643]
[1728505206391,5.92934694,2412.7,2412.4,0.8787643]
[1728505206597,4.14464,2412.8,2412.4,0.8787643]
[1728505206796,4.14464,2412.8,2412.4,1.88118473]
[1728505207102,4.14464,2412.8,2412.4,6.10930799]
[1728505207247,4.14436,2413.0,2412.4,6.10920799]
[1728505207451,8.28924,2412.8,2412.4,1.96407799]
[1728505207677,4.14456,2412.8,2412.4,1.96407799]
[1728505207846,4.14456,2412.8,2412.4,6.10924799]
[1728505208048,4.14475,2412.7,2412.4,1.96407799]
[1728505208298,4.14475,2412.7,2412.4,1.88118473]
[1728505208489,4.14475,2412.7,2412.4,1.96407897]
[1728505209291,4.14456,2412.8,2412.4,1.96407897]
[1728505209899,4.14439,2412.9,2412.4,6.10920897]
[1728505211997,4.14459,2412.8,2412.4,1.96407897]
[1728505212574,4.14459,2412.8,2412.4,6.10931897]
[1728505213104,4.14397,2413.2,2412.7,0.8169]
[1728505213368,1.76085094,2413.4,2412.7,0.8169]
[1728505213369,4.93142,2413.4,2412.9,4.14436]
[1728505213490,4.93142,2413.4,2412.8,4.14452]
[1728505213805,4.93142,2413.4,2412.8,4.2273996]
[1728505214466,4.14387,2413.2,2412.8,0.0828796]
[1728505214671,4.14387,2413.2,2412.7,4.96146]
[1728505214880,4.14387,2413.2,2412.7,9.80980239]
[1728505215106,4.14387,2413.2,2412.8,4.14455]
[1728505215315,4.14387,2413.2,2412.7,0.8169]
[1728505215609,8.2887,2413.0,2412.7,0.8169]
[1728505215818,8.2887,2413.0,2412.5,4.14492]
[1728505215819,4.1444,2412.9,2412.6,0.7955]
[1728505216106,8.0097497,2412.9,2412.6,0.7955]
[1728505216411,4.1444,2412.9,2412.6,0.7955]
[1728505216906,8.7721297,2413.1,2412.6,4.94039]
[1728505217295,0.04068921,2413.0,2412.7,0.63289098]
[1728505217493,4.14385,2413.3,2412.9,0.8262]
[1728505217812,0.04068921,2413.2,2412.9,0.8262]
[1728505218105,4.14418,2413.1,2412.9,0.8262]
[1728505218325,0.04068921,2413.0,2412.7,0.8262]
[1728505218496,0.04068921,2413.0,2412.8,0.08288274]
[1728505218704,0.04068921,2413.0,2412.7,4.97091]
[1728505218885,4.14396,2413.2,2412.7,5.882483]
[1728505219211,0.04076145,2413.1,2412.7,5.882483]
[1728505219414,0.04076145,2413.1,2412.8,4.22743275]
[1728505220070,0.04076145,2413.1,2413.0,4.90751]
[1728505220274,4.14344,2413.5,2413.0,4.90751]
[1728505220569,0.04076145,2413.4,2413.0,4.90751]
[1728505220811,0.04076145,2413.4,2413.1,4.14404]
[1728505221039,0.04076145,2413.4,2413.3,4.1437]
[1728505221339,0.04076145,2413.4,2413.3,0.7661]
[1728505221541,4.14302,2413.7,2413.3,0.7661]
[1728505221716,0.04076145,2413.4,2413.3,0.7661]
[1728505221911,4.14302,2413.7,2413.3,0.7661]
[1728505222114,0.04076145,2413.6,2413.3,0.84896591]
[1728505222315,8.8341197,2413.9,2413.4,4.14338]
[1728505222536,0.04076145,2413.8,2413.4,4.14338]
[1728505222705,0.04076145,2413.8,2413.4,4.22624179]
[1728505223140,4.18361145,2413.8,2413.4,4.22624179]
[1728505223461,4.14337,2413.5,2413.1,4.69403]
[1728505223749,8.0084697,2413.7,2413.1,9.66189]
[1728505223750,4.14319,2413.6,2413.1,9.66189]
[1728505223953,0.04076145,2413.4,2413.1,5.51786]
[1728505224119,4.14319,2413.6,2413.1,5.51786]
[1728505224310,0.04122868,2413.5,2413.1,0.8239]
[1728505224515,8.81303838,2413.5,2413.1,0.8239]
[1728505224752,4.14353,2413.4,2413.1,0.8239]
[1728505224949,8.81303838,2413.5,2413.1,0.8239]
[1728505225252,0.04120745,2413.3,2413.1,0.8239]
[1728505225453,8.7718097,2413.5,2413.1,0.8239]
[1728505225656,0.04117348,2413.2,2413.1,0.8239]
[1728505225828,4.90646,2413.5,2413.1,0.8239]
[1728505226027,0.04117348,2413.2,2413.1,5.05081244]
[1728505226209,8.7827897,2413.7,2413.1,6.49094349]
[1728505226552,4.1432,2413.6,2413.1,5.05071244]
[1728505226848,4.18437348,2413.6,2413.1,9.19465244]
[1728505227052,0.04117348,2413.6,2413.2,0.08287244]
[1728505227262,0.04117348,2413.6,2413.5,0.7579]
[1728505227557,0.0412032,2413.6,2413.5,0.7579]
[1728505227716,4.97186,2413.9,2413.5,0.7579]
[1728505227916,0.0412032,2413.8,2413.5,0.7579]
[1728505228161,0.0412032,2413.8,2413.5,1.25631518]
[1728505228330,0.0412032,2413.8,2413.6,4.22592906]
[1728505228539,4.14203,2414.3,2413.8,4.14271]
[1728505228749,0.04013165,2414.2,2413.8,0.08284597]
[1728505228925,0.04013165,2414.2,2413.9,4.14266]
[1728505229125,4.14203,2414.3,2413.9,4.14266]
[1728505229741,4.14203,2414.3,2413.8,0.08284597]
[1728505230072,4.14215,2414.2,2413.8,0.08284597]
[1728505230274,0.04013165,2414.2,2413.8,0.08284597]
[1728505230573,4.14215,2414.2,2413.8,0.08284597]
[1728505230732,0.04013165,2414.1,2413.8,0.08284597]
[1728505230931,0.04013165,2414.1,2413.9,4.14258]
[1728505231172,4.1419,2414.4,2413.9,4.14258]
[1728505231477,0.04013165,2414.0,2413.8,4.22564597]
[1728505231784,4.14199,2414.3,2413.9,4.97489]
[1728505232181,8.0073397,2414.3,2413.9,0.8323]
[1728505232349,0.8324,2414.4,2413.5,5.49841518]
[1728505232350,4.14261,2414.0,2413.7,0.8019]
[1728505232553,0.09602779,2414.2,2413.7,0.8019]
[1728505232858,4.14234,2414.1,2413.7,4.94491]
[1728505233180,4.23836779,2414.1,2413.7,0.8019]
[1728505233392,4.14268,2413.9,2413.5,0.763]
[1728505233685,4.14287,2413.8,2413.3,4.93028]
[1728505234064,4.23906779,2413.7,2413.3,0.7867]
[1728505234251,4.14336,2413.5,2413.1,0.7867]
[1728505234861,0.09602779,2413.4,2413.1,4.93065]
[1728505235251,4.92949,2413.6,2413.1,4.93065]
[1728505235753,4.23938779,2413.5,2413.1,4.93074]
[1728505235953,0.09602779,2413.5,2413.1,4.93074]
[1728505236893,4.23940779,2413.5,2413.1,0.7867]
[1728505237190,4.23940779,2413.5,2413.1,4.93063]
[1728505237191,0.09602779,2413.5,2413.1,4.93063]
[1728505237565,0.09602779,2413.5,2413.1,0.7867]
[1728505237893,4.14362,2413.4,2412.9,4.91202]
[1728505238071,0.7863,2413.6,2413.0,0.63287458]
[1728505238250,4.14309,2413.7,2413.0,0.63287458]
[1728505238458,0.09603202,2413.6,2413.2,4.14378]
[1728505238855,0.09603202,2413.6,2413.2,4.22664773]
[1728505239988,4.14353,2413.4,2412.9,4.91195]
[1728505240501,4.90353,2413.4,2413.0,4.14415]
[1728505240703,4.90353,2413.4,2412.9,4.91195]
[1728505240704,4.1438,2413.3,2412.9,0.7677]
[1728505241003,4.1438,2413.3,2412.9,4.91208]
[1728505241004,0.09603202,2413.3,2412.9,4.91208]
[1728505241509,0.09603202,2413.3,2412.9,0.7677]
[1728505241510,4.23974202,2413.3,2412.9,0.7677]
[1728505242211,4.23974202,2413.3,2412.7,5.806273]
[1728505242400,8.38356202,2413.3,2412.8,4.22733907]
[1728505242567,4.14387,2413.2,2412.8,4.22733907]
[1728505243170,0.09603202,2413.1,2412.8,4.22733907]
[1728505243700,4.14371,2413.3,2412.8,4.22733907]
[1728505243905,0.09603202,2413.2,2412.8,4.22733907]
[1728505244250,4.14371,2413.3,2412.8,4.22733907]
[1728505244453,0.09603202,2413.1,2412.8,4.22733907]
[1728505244611,4.14371,2413.3,2412.8,4.22733907]
[1728505245236,0.09603202,2413.2,2412.8,0.08287907]
[1728505245447,4.14406,2413.1,2412.8,0.08287907]
[1728505245803,0.09603202,2413.0,2412.9,4.69439]
[1728505246003,0.09603202,2413.0,2412.9,5.47399]
[1728505246222,4.96384,2413.7,2413.1,4.14396]